Workbook

Sheet ブログ収益
B1: アドセンス | D1: アドセンス | M1: アナリティクス | R1: ブログ
B2: 当日収益 | C2: 増減 | D2: 今週収益 | E2: 増減 | F2: 直近30日 | G2: 過去30日 | J2: 累計 | K2: 当日PV | L2: 比率 | M2: 今週 PV | N2: 増減 | O2: 直近30日PV | P2: 比率 | Q2: 過去12カ月PV | R2: 総文字数 | T2: 経費累計 | U2: 利益累計
A3: 2021-01-01 | B3: 0 | J3: =SUM(B$3:B3) -> 0 | T3: =SUMIF(ブログ経費!A:A,"<="&A3,ブログ経費!B:B) -> 3300 | U3: =J3-T3 -> -3300
A4: 2021-01-02 | B4: 0 | C4: =B4-B3 -> 0 | J4: =SUM(B$3:B4) -> 0 | T4: =SUMIF(ブログ経費!A:A,"<="&A4,ブログ経費!B:B) -> 3300 | U4: =J4-T4 -> -3300
A5: 2021-01-03 | B5: 0 | C5: =B5-B4 -> 0 | J5: =SUM(B$3:B5) -> 0 | T5: =SUMIF(ブログ経費!A:A,"<="&A5,ブログ経費!B:B) -> 3300 | U5: -3300
A6: 2021-01-04 | B6: 0 | C6: 0 | J6: =SUM(B$3:B6) -> 0 | T6: =SUMIF(ブログ経費!A:A,"<="&A6,ブログ経費!B:B) -> 3300 | U6: -3300
A7: 2021-01-05 | B7: 0 | C7: 0 | J7: =SUM(B$3:B7) -> 0 | T7: =SUMIF(ブログ経費!A:A,"<="&A7,ブログ経費!B:B) -> 3300 | U7: -3300
A8: 2021-01-06 | B8: 0 | C8: 0 | J8: =SUM(B$3:B8) -> 0 | T8: =SUMIF(ブログ経費!A:A,"<="&A8,ブログ経費!B:B) -> 3300 | U8: -3300
A9: 2021-01-07 | B9: 0 | C9: 0 | J9: =SUM(B$3:B9) -> 0 | T9: =SUMIF(ブログ経費!A:A,"<="&A9,ブログ経費!B:B) -> 3300 | U9: -3300
A10: 2021-01-08 | B10: 0 | C10: 0 | J10: =SUM(B$3:B10) -> 0 | T10: =SUMIF(ブログ経費!A:A,"<="&A10,ブログ経費!B:B) -> 3300 | U10: -3300
A11: 2021-01-09 | B11: 0 | C11: 0 | J11: =SUM(B$3:B11) -> 0 | T11: =SUMIF(ブログ経費!A:A,"<="&A11,ブログ経費!B:B) -> 3300 | U11: -3300
A12: 2021-01-10 | B12: 0 | C12: 0 | J12: =SUM(B$3:B12) -> 0 | T12: =SUMIF(ブログ経費!A:A,"<="&A12,ブログ経費!B:B) -> 3300 | U12: -3300
A13: 2021-01-11 | B13: 0 | C13: 0 | J13: =SUM(B$3:B13) -> 0 | T13: =SUMIF(ブログ経費!A:A,"<="&A13,ブログ経費!B:B) -> 3300 | U13: -3300
A14: 2021-01-12 | B14: 0 | C14: 0 | J14: =SUM(B$3:B14) -> 0 | T14: =SUMIF(ブログ経費!A:A,"<="&A14,ブログ経費!B:B) -> 3300 | U14: -3300
A15: 2021-01-13 | B15: 0 | C15: 0 | J15: =SUM(B$3:B15) -> 0 | T15: =SUMIF(ブログ経費!A:A,"<="&A15,ブログ経費!B:B) -> 3300 | U15: -3300
A16: 2021-01-14 | B16: 0 | C16: 0 | J16: =SUM(B$3:B16) -> 0 | T16: =SUMIF(ブログ経費!A:A,"<="&A16,ブログ経費!B:B) -> 3300 | U16: -3300
A17: 2021-01-15 | B17: 0 | C17: 0 | J17: =SUM(B$3:B17) -> 0 | T17: =SUMIF(ブログ経費!A:A,"<="&A17,ブログ経費!B:B) -> 3300 | U17: -3300
A18: 2021-01-16 | B18: 0 | C18: 0 | J18: =SUM(B$3:B18) -> 0 | T18: =SUMIF(ブログ経費!A:A,"<="&A18,ブログ経費!B:B) -> 3300 | U18: -3300
A19: 2021-01-17 | B19: 0 | C19: 0 | J19: =SUM(B$3:B19) -> 0 | T19: =SUMIF(ブログ経費!A:A,"<="&A19,ブログ経費!B:B) -> 3300 | U19: -3300
A20: 2021-01-18 | B20: 0 | C20: 0 | J20: =SUM(B$3:B20) -> 0 | T20: =SUMIF(ブログ経費!A:A,"<="&A20,ブログ経費!B:B) -> 3300 | U20: -3300
A21: 2021-01-19 | B21: 0 | C21: 0 | J21: =SUM(B$3:B21) -> 0 | T21: =SUMIF(ブログ経費!A:A,"<="&A21,ブログ経費!B:B) -> 3300 | U21: -3300
A22: 2021-01-20 | B22: 0 | C22: 0 | J22: =SUM(B$3:B22) -> 0 | T22: =SUMIF(ブログ経費!A:A,"<="&A22,ブログ経費!B:B) -> 3300 | U22: -3300
A23: 2021-01-21 | B23: 0 | C23: 0 | J23: =SUM(B$3:B23) -> 0 | T23: =SUMIF(ブログ経費!A:A,"<="&A23,ブログ経費!B:B) -> 3300 | U23: -3300
A24: 2021-01-22 | B24: 0 | C24: 0 | J24: =SUM(B$3:B24) -> 0 | T24: =SUMIF(ブログ経費!A:A,"<="&A24,ブログ経費!B:B) -> 3300 | U24: -3300
A25: 2021-01-23 | B25: 0 | C25: 0 | J25: =SUM(B$3:B25) -> 0 | T25: =SUMIF(ブログ経費!A:A,"<="&A25,ブログ経費!B:B) -> 3300 | U25: -3300
A26: 2021-01-24 | B26: 0 | C26: 0 | J26: =SUM(B$3:B26) -> 0 | T26: =SUMIF(ブログ経費!A:A,"<="&A26,ブログ経費!B:B) -> 3300 | U26: -3300
A27: 2021-01-25 | B27: 0 | C27: 0 | J27: =SUM(B$3:B27) -> 0 | T27: =SUMIF(ブログ経費!A:A,"<="&A27,ブログ経費!B:B) -> 3300 | U27: -3300
A28: 2021-01-26 | B28: 0 | C28: 0 | J28: =SUM(B$3:B28) -> 0 | T28: =SUMIF(ブログ経費!A:A,"<="&A28,ブログ経費!B:B) -> 3300 | U28: -3300
A29: 2021-01-27 | B29: 0 | C29: 0 | J29: =SUM(B$3:B29) -> 0 | T29: =SUMIF(ブログ経費!A:A,"<="&A29,ブログ経費!B:B) -> 3300 | U29: -3300
A30: 2021-01-28 | B30: 0 | C30: 0 | J30: =SUM(B$3:B30) -> 0 | T30: =SUMIF(ブログ経費!A:A,"<="&A30,ブログ経費!B:B) -> 3300 | U30: -3300
A31: 2021-01-29 | B31: 0 | C31: 0 | J31: =SUM(B$3:B31) -> 0 | T31: =SUMIF(ブログ経費!A:A,"<="&A31,ブログ経費!B:B) -> 3300 | U31: -3300
A32: 2021-01-30 | B32: 0 | C32: 0 | J32: =SUM(B$3:B32) -> 0 | T32: =SUMIF(ブログ経費!A:A,"<="&A32,ブログ経費!B:B) -> 3300 | U32: -3300
A33: 2021-01-31 | B33: 0 | C33: 0 | J33: =SUM(B$3:B33) -> 0 | T33: =SUMIF(ブログ経費!A:A,"<="&A33,ブログ経費!B:B) -> 3300 | U33: -3300
A34: 2021-02-01 | B34: 0 | C34: 0 | J34: =SUM(B$3:B34) -> 0 | T34: =SUMIF(ブログ経費!A:A,"<="&A34,ブログ経費!B:B) -> 3300 | U34: -3300
A35: 2021-02-02 | B35: 0 | C35: 0 | J35: =SUM(B$3:B35) -> 0 | T35: =SUMIF(ブログ経費!A:A,"<="&A35,ブログ経費!B:B) -> 3300 | U35: -3300
A36: 2021-02-03 | B36: 0 | C36: 0 | J36: =SUM(B$3:B36) -> 0 | T36: =SUMIF(ブログ経費!A:A,"<="&A36,ブログ経費!B:B) -> 3300 | U36: -3300
A37: 2021-02-04 | B37: 0 | C37: 0 | J37: =SUM(B$3:B37) -> 0 | T37: =SUMIF(ブログ経費!A:A,"<="&A37,ブログ経費!B:B) -> 3300 | U37: -3300
A38: 2021-02-05 | B38: 0 | C38: 0 | J38: =SUM(B$3:B38) -> 0 | T38: =SUMIF(ブログ経費!A:A,"<="&A38,ブログ経費!B:B) -> 3300 | U38: -3300
A39: 2021-02-06 | B39: 0 | C39: 0 | J39: =SUM(B$3:B39) -> 0 | T39: =SUMIF(ブログ経費!A:A,"<="&A39,ブログ経費!B:B) -> 3300 | U39: -3300
A40: 2021-02-07 | B40: 0 | C40: 0 | J40: =SUM(B$3:B40) -> 0 | T40: =SUMIF(ブログ経費!A:A,"<="&A40,ブログ経費!B:B) -> 3300 | U40: -3300
A41: 2021-02-08 | B41: 0 | C41: 0 | J41: =SUM(B$3:B41) -> 0 | T41: =SUMIF(ブログ経費!A:A,"<="&A41,ブログ経費!B:B) -> 3300 | U41: -3300
A42: 2021-02-09 | B42: 0 | C42: 0 | J42: =SUM(B$3:B42) -> 0 | T42: =SUMIF(ブログ経費!A:A,"<="&A42,ブログ経費!B:B) -> 3300 | U42: -3300
A43: 2021-02-10 | B43: 0 | C43: 0 | J43: =SUM(B$3:B43) -> 0 | T43: =SUMIF(ブログ経費!A:A,"<="&A43,ブログ経費!B:B) -> 3300 | U43: -3300
A44: 2021-02-11 | B44: 0 | C44: 0 | J44: =SUM(B$3:B44) -> 0 | T44: =SUMIF(ブログ経費!A:A,"<="&A44,ブログ経費!B:B) -> 3300 | U44: -3300
A45: 2021-02-12 | B45: 0 | C45: 0 | J45: =SUM(B$3:B45) -> 0 | T45: =SUMIF(ブログ経費!A:A,"<="&A45,ブログ経費!B:B) -> 3300 | U45: -3300
A46: 2021-02-13 | B46: 0 | C46: 0 | J46: =SUM(B$3:B46) -> 0 | T46: =SUMIF(ブログ経費!A:A,"<="&A46,ブログ経費!B:B) -> 3300 | U46: -3300
A47: 2021-02-14 | B47: 0 | C47: 0 | J47: =SUM(B$3:B47) -> 0 | T47: =SUMIF(ブログ経費!A:A,"<="&A47,ブログ経費!B:B) -> 3300 | U47: -3300
A48: 2021-02-15 | B48: 0 | C48: 0 | J48: =SUM(B$3:B48) -> 0 | T48: =SUMIF(ブログ経費!A:A,"<="&A48,ブログ経費!B:B) -> 3300 | U48: -3300
A49: 2021-02-16 | B49: 0 | C49: 0 | J49: =SUM(B$3:B49) -> 0 | T49: =SUMIF(ブログ経費!A:A,"<="&A49,ブログ経費!B:B) -> 3300 | U49: -3300
A50: 2021-02-17 | B50: 0 | C50: 0 | J50: =SUM(B$3:B50) -> 0 | T50: =SUMIF(ブログ経費!A:A,"<="&A50,ブログ経費!B:B) -> 3300 | U50: -3300
A51: 2021-02-18 | B51: 0 | C51: 0 | J51: =SUM(B$3:B51) -> 0 | T51: =SUMIF(ブログ経費!A:A,"<="&A51,ブログ経費!B:B) -> 3300 | U51: -3300
A52: 2021-02-19 | B52: 0 | C52: 0 | J52: =SUM(B$3:B52) -> 0 | T52: =SUMIF(ブログ経費!A:A,"<="&A52,ブログ経費!B:B) -> 3300 | U52: -3300
A53: 2021-02-20 | B53: 0 | C53: 0 | J53: =SUM(B$3:B53) -> 0 | T53: =SUMIF(ブログ経費!A:A,"<="&A53,ブログ経費!B:B) -> 3300 | U53: -3300
A54: 2021-02-21 | B54: 0 | C54: 0 | J54: =SUM(B$3:B54) -> 0 | T54: =SUMIF(ブログ経費!A:A,"<="&A54,ブログ経費!B:B) -> 3300 | U54: -3300
A55: 2021-02-22 | B55: 0 | C55: 0 | J55: =SUM(B$3:B55) -> 0 | T55: =SUMIF(ブログ経費!A:A,"<="&A55,ブログ経費!B:B) -> 3300 | U55: -3300
A56: 2021-02-23 | B56: 0 | C56: 0 | J56: =SUM(B$3:B56) -> 0 | T56: =SUMIF(ブログ経費!A:A,"<="&A56,ブログ経費!B:B) -> 3300 | U56: -3300
A57: 2021-02-24 | B57: 0 | C57: 0 | J57: =SUM(B$3:B57) -> 0 | T57: =SUMIF(ブログ経費!A:A,"<="&A57,ブログ経費!B:B) -> 3300 | U57: -3300
A58: 2021-02-25 | B58: 0 | C58: 0 | J58: =SUM(B$3:B58) -> 0 | T58: =SUMIF(ブログ経費!A:A,"<="&A58,ブログ経費!B:B) -> 3300 | U58: -3300
A59: 2021-02-26 | B59: 0 | C59: 0 | J59: =SUM(B$3:B59) -> 0 | T59: =SUMIF(ブログ経費!A:A,"<="&A59,ブログ経費!B:B) -> 3300 | U59: -3300
A60: 2021-02-27 | B60: 0 | C60: 0 | J60: =SUM(B$3:B60) -> 0 | T60: =SUMIF(ブログ経費!A:A,"<="&A60,ブログ経費!B:B) -> 3300 | U60: -3300
A61: 2021-02-28 | B61: 0 | C61: 0 | J61: =SUM(B$3:B61) -> 0 | T61: =SUMIF(ブログ経費!A:A,"<="&A61,ブログ経費!B:B) -> 3300 | U61: -3300
A62: 2021-03-01 | B62: 0 | C62: 0 | F62: =SUM(B33:B62) -> 0 | G62: =SUM(B3:B32) -> 0 | H62: =F62-G62 -> 0 | I62: =H62/G62 ->  | J62: =SUM(B$3:B62) -> 0 | T62: =SUMIF(ブログ経費!A:A,"<="&A62,ブログ経費!B:B) -> 3300 | U62: -3300
A63: 2021-03-02 | B63: 0 | C63: 0 | F63: =SUM(B34:B63) -> 0 | G63: =SUM(B4:B33) -> 0 | H63: =F63-G63 -> 0 | I63: =H63/G63 ->  | J63: =SUM(B$3:B63) -> 0 | T63: =SUMIF(ブログ経費!A:A,"<="&A63,ブログ経費!B:B) -> 3300 | U63: -3300
A64: 2021-03-03 | B64: 0 | C64: 0 | F64: 0 | G64: 0 | H64: 0 | J64: =SUM(B$3:B64) -> 0 | T64: =SUMIF(ブログ経費!A:A,"<="&A64,ブログ経費!B:B) -> 3300 | U64: -3300
A65: 2021-03-04 | B65: 0 | C65: 0 | F65: 0 | G65: 0 | H65: 0 | J65: =SUM(B$3:B65) -> 0 | T65: =SUMIF(ブログ経費!A:A,"<="&A65,ブログ経費!B:B) -> 3300 | U65: -3300
A66: 2021-03-05 | B66: 0 | C66: 0 | F66: 0 | G66: 0 | H66: 0 | J66: =SUM(B$3:B66) -> 0 | T66: =SUMIF(ブログ経費!A:A,"<="&A66,ブログ経費!B:B) -> 3300 | U66: -3300
A67: 2021-03-06 | B67: 0 | C67: 0 | F67: 0 | G67: 0 | H67: 0 | J67: =SUM(B$3:B67) -> 0 | T67: =SUMIF(ブログ経費!A:A,"<="&A67,ブログ経費!B:B) -> 3300 | U67: -3300
A68: 2021-03-07 | B68: 0 | C68: 0 | F68: 0 | G68: 0 | H68: 0 | J68: =SUM(B$3:B68) -> 0 | T68: =SUMIF(ブログ経費!A:A,"<="&A68,ブログ経費!B:B) -> 3300 | U68: =J68-T68 -> -3300
A69: 2021-03-08 | B69: 0 | C69: =B69-B68 -> 0 | F69: 0 | G69: 0 | H69: 0 | J69: =SUM(B$3:B69) -> 0 | T69: =SUMIF(ブログ経費!A:A,"<="&A69,ブログ経費!B:B) -> 3300 | U69: -3300
A70: 2021-03-09 | B70: 0 | C70: 0 | F70: 0 | G70: 0 | H70: 0 | J70: =SUM(B$3:B70) -> 0 | T70: =SUMIF(ブログ経費!A:A,"<="&A70,ブログ経費!B:B) -> 3300 | U70: -3300
A71: 2021-03-10 | B71: 0 | C71: 0 | F71: 0 | G71: 0 | H71: 0 | J71: =SUM(B$3:B71) -> 0 | T71: =SUMIF(ブログ経費!A:A,"<="&A71,ブログ経費!B:B) -> 3300 | U71: -3300
A72: 2021-03-11 | B72: 0 | C72: 0 | F72: 0 | G72: 0 | H72: 0 | J72: =SUM(B$3:B72) -> 0 | T72: =SUMIF(ブログ経費!A:A,"<="&A72,ブログ経費!B:B) -> 3300 | U72: -3300
A73: 2021-03-12 | B73: 0 | C73: 0 | F73: 0 | G73: 0 | H73: 0 | J73: =SUM(B$3:B73) -> 0 | T73: =SUMIF(ブログ経費!A:A,"<="&A73,ブログ経費!B:B) -> 3300 | U73: -3300
A74: 2021-03-13 | B74: 0 | C74: 0 | F74: 0 | G74: 0 | H74: 0 | J74: =SUM(B$3:B74) -> 0 | T74: =SUMIF(ブログ経費!A:A,"<="&A74,ブログ経費!B:B) -> 3300 | U74: -3300
A75: 2021-03-14 | B75: 0 | C75: 0 | F75: 0 | G75: 0 | H75: 0 | J75: =SUM(B$3:B75) -> 0 | T75: =SUMIF(ブログ経費!A:A,"<="&A75,ブログ経費!B:B) -> 3300 | U75: -3300
A76: 2021-03-15 | B76: 0 | C76: 0 | F76: 0 | G76: 0 | H76: 0 | J76: =SUM(B$3:B76) -> 0 | T76: =SUMIF(ブログ経費!A:A,"<="&A76,ブログ経費!B:B) -> 3300 | U76: -3300
A77: 2021-03-16 | B77: 0 | C77: 0 | F77: 0 | G77: 0 | H77: 0 | J77: =SUM(B$3:B77) -> 0 | T77: =SUMIF(ブログ経費!A:A,"<="&A77,ブログ経費!B:B) -> 3300 | U77: -3300
A78: 2021-03-17 | B78: 0 | C78: 0 | F78: 0 | G78: 0 | H78: 0 | J78: =SUM(B$3:B78) -> 0 | T78: =SUMIF(ブログ経費!A:A,"<="&A78,ブログ経費!B:B) -> 3300 | U78: -3300
A79: 2021-03-18 | B79: 0 | C79: 0 | F79: 0 | G79: 0 | H79: 0 | J79: =SUM(B$3:B79) -> 0 | T79: =SUMIF(ブログ経費!A:A,"<="&A79,ブログ経費!B:B) -> 3300 | U79: -3300
A80: 2021-03-19 | B80: 0 | C80: 0 | F80: 0 | G80: 0 | H80: 0 | J80: =SUM(B$3:B80) -> 0 | T80: =SUMIF(ブログ経費!A:A,"<="&A80,ブログ経費!B:B) -> 3300 | U80: -3300
A81: 2021-03-20 | B81: 0 | C81: 0 | F81: 0 | G81: 0 | H81: 0 | J81: =SUM(B$3:B81) -> 0 | T81: =SUMIF(ブログ経費!A:A,"<="&A81,ブログ経費!B:B) -> 3300 | U81: -3300
A82: 2021-03-21 | B82: 0 | C82: 0 | F82: 0 | G82: 0 | H82: 0 | J82: =SUM(B$3:B82) -> 0 | T82: =SUMIF(ブログ経費!A:A,"<="&A82,ブログ経費!B:B) -> 3300 | U82: -3300
A83: 2021-03-22 | B83: 0 | C83: 0 | F83: 0 | G83: 0 | H83: 0 | J83: =SUM(B$3:B83) -> 0 | T83: =SUMIF(ブログ経費!A:A,"<="&A83,ブログ経費!B:B) -> 3300 | U83: -3300
A84: 2021-03-23 | B84: 0 | C84: 0 | F84: 0 | G84: 0 | H84: 0 | J84: =SUM(B$3:B84) -> 0 | T84: =SUMIF(ブログ経費!A:A,"<="&A84,ブログ経費!B:B) -> 3300 | U84: -3300
A85: 2021-03-24 | B85: 0 | C85: 0 | F85: 0 | G85: 0 | H85: 0 | J85: =SUM(B$3:B85) -> 0 | T85: =SUMIF(ブログ経費!A:A,"<="&A85,ブログ経費!B:B) -> 3300 | U85: -3300
A86: 2021-03-25 | B86: 0 | C86: 0 | F86: 0 | G86: 0 | H86: 0 | J86: =SUM(B$3:B86) -> 0 | T86: =SUMIF(ブログ経費!A:A,"<="&A86,ブログ経費!B:B) -> 3300 | U86: -3300
A87: 2021-03-26 | B87: 0 | C87: 0 | F87: 0 | G87: 0 | H87: 0 | J87: =SUM(B$3:B87) -> 0 | T87: =SUMIF(ブログ経費!A:A,"<="&A87,ブログ経費!B:B) -> 3300 | U87: -3300
A88: 2021-03-27 | B88: 0 | C88: 0 | F88: 0 | G88: 0 | H88: 0 | J88: =SUM(B$3:B88) -> 0 | T88: =SUMIF(ブログ経費!A:A,"<="&A88,ブログ経費!B:B) -> 3300 | U88: -3300
A89: 2021-03-28 | B89: 0 | C89: 0 | F89: 0 | G89: 0 | H89: 0 | J89: =SUM(B$3:B89) -> 0 | T89: =SUMIF(ブログ経費!A:A,"<="&A89,ブログ経費!B:B) -> 3300 | U89: -3300
A90: 2021-03-29 | B90: 0 | C90: 0 | F90: 0 | G90: 0 | H90: 0 | J90: =SUM(B$3:B90) -> 0 | T90: =SUMIF(ブログ経費!A:A,"<="&A90,ブログ経費!B:B) -> 3300 | U90: -3300
A91: 2021-03-30 | B91: 0 | C91: 0 | F91: 0 | G91: 0 | H91: 0 | J91: =SUM(B$3:B91) -> 0 | T91: =SUMIF(ブログ経費!A:A,"<="&A91,ブログ経費!B:B) -> 3300 | U91: -3300
A92: 2021-03-31 | B92: 0 | C92: 0 | F92: 0 | G92: 0 | H92: 0 | J92: =SUM(B$3:B92) -> 0 | T92: =SUMIF(ブログ経費!A:A,"<="&A92,ブログ経費!B:B) -> 3300 | U92: -3300
A93: 2021-04-01 | B93: 0 | C93: 0 | F93: 0 | G93: 0 | H93: 0 | J93: =SUM(B$3:B93) -> 0 | T93: =SUMIF(ブログ経費!A:A,"<="&A93,ブログ経費!B:B) -> 3300 | U93: -3300
A94: 2021-04-02 | B94: 0 | C94: 0 | F94: 0 | G94: 0 | H94: 0 | J94: =SUM(B$3:B94) -> 0 | T94: =SUMIF(ブログ経費!A:A,"<="&A94,ブログ経費!B:B) -> 3300 | U94: -3300
A95: 2021-04-03 | B95: 0 | C95: 0 | F95: 0 | G95: 0 | H95: 0 | J95: =SUM(B$3:B95) -> 0 | T95: =SUMIF(ブログ経費!A:A,"<="&A95,ブログ経費!B:B) -> 3300 | U95: -3300
A96: 2021-04-04 | B96: 0 | C96: 0 | F96: 0 | G96: 0 | H96: 0 | J96: =SUM(B$3:B96) -> 0 | T96: =SUMIF(ブログ経費!A:A,"<="&A96,ブログ経費!B:B) -> 3300 | U96: -3300
A97: 2021-04-05 | B97: 0 | C97: 0 | F97: 0 | G97: 0 | H97: 0 | J97: =SUM(B$3:B97) -> 0 | T97: =SUMIF(ブログ経費!A:A,"<="&A97,ブログ経費!B:B) -> 3300 | U97: -3300
A98: 2021-04-06 | B98: 0 | C98: 0 | F98: 0 | G98: 0 | H98: 0 | J98: =SUM(B$3:B98) -> 0 | T98: =SUMIF(ブログ経費!A:A,"<="&A98,ブログ経費!B:B) -> 3300 | U98: -3300
A99: 2021-04-07 | B99: 0 | C99: 0 | F99: 0 | G99: 0 | H99: 0 | J99: =SUM(B$3:B99) -> 0 | T99: =SUMIF(ブログ経費!A:A,"<="&A99,ブログ経費!B:B) -> 3300 | U99: -3300
A100: 2021-04-08 | B100: 0 | C100: 0 | F100: 0 | G100: 0 | H100: 0 | J100: =SUM(B$3:B100) -> 0 | T100: =SUMIF(ブログ経費!A:A,"<="&A100,ブログ経費!B:B) -> 3300 | U100: -3300
A101: 2021-04-09 | B101: 0 | C101: 0 | F101: 0 | G101: 0 | H101: 0 | J101: =SUM(B$3:B101) -> 0 | T101: =SUMIF(ブログ経費!A:A,"<="&A101,ブログ経費!B:B) -> 3300 | U101: -3300
A102: 2021-04-10 | B102: 0 | C102: 0 | F102: 0 | G102: 0 | H102: 0 | J102: =SUM(B$3:B102) -> 0 | T102: =SUMIF(ブログ経費!A:A,"<="&A102,ブログ経費!B:B) -> 3300 | U102: -3300
A103: 2021-04-11 | B103: 0 | C103: 0 | F103: 0 | G103: 0 | H103: 0 | J103: =SUM(B$3:B103) -> 0 | T103: =SUMIF(ブログ経費!A:A,"<="&A103,ブログ経費!B:B) -> 3300 | U103: -3300
A104: 2021-04-12 | B104: 0 | C104: 0 | F104: 0 | G104: 0 | H104: 0 | J104: =SUM(B$3:B104) -> 0 | T104: =SUMIF(ブログ経費!A:A,"<="&A104,ブログ経費!B:B) -> 3300 | U104: -3300
A105: 2021-04-13 | B105: 0 | C105: 0 | F105: 0 | G105: 0 | H105: 0 | J105: =SUM(B$3:B105) -> 0 | T105: =SUMIF(ブログ経費!A:A,"<="&A105,ブログ経費!B:B) -> 3300 | U105: -3300
A106: 2021-04-14 | B106: 0 | C106: 0 | F106: 0 | G106: 0 | H106: 0 | J106: =SUM(B$3:B106) -> 0 | T106: =SUMIF(ブログ経費!A:A,"<="&A106,ブログ経費!B:B) -> 3300 | U106: -3300
A107: 2021-04-15 | B107: 0 | C107: 0 | F107: 0 | G107: 0 | H107: 0 | J107: =SUM(B$3:B107) -> 0 | T107: =SUMIF(ブログ経費!A:A,"<="&A107,ブログ経費!B:B) -> 3300 | U107: -3300
A108: 2021-04-16 | B108: 0 | C108: 0 | F108: 0 | G108: 0 | H108: 0 | J108: =SUM(B$3:B108) -> 0 | T108: =SUMIF(ブログ経費!A:A,"<="&A108,ブログ経費!B:B) -> 3300 | U108: -3300
A109: 2021-04-17 | B109: 0 | C109: 0 | F109: 0 | G109: 0 | H109: 0 | J109: =SUM(B$3:B109) -> 0 | T109: =SUMIF(ブログ経費!A:A,"<="&A109,ブログ経費!B:B) -> 3300 | U109: -3300
A110: 2021-04-18 | B110: 0 | C110: 0 | F110: 0 | G110: 0 | H110: 0 | J110: =SUM(B$3:B110) -> 0 | T110: =SUMIF(ブログ経費!A:A,"<="&A110,ブログ経費!B:B) -> 3300 | U110: -3300
A111: 2021-04-19 | B111: 0 | C111: 0 | F111: 0 | G111: 0 | H111: 0 | J111: =SUM(B$3:B111) -> 0 | T111: =SUMIF(ブログ経費!A:A,"<="&A111,ブログ経費!B:B) -> 3300 | U111: -3300
A112: 2021-04-20 | B112: 0 | C112: 0 | F112: 0 | G112: 0 | H112: 0 | J112: =SUM(B$3:B112) -> 0 | T112: =SUMIF(ブログ経費!A:A,"<="&A112,ブログ経費!B:B) -> 3300 | U112: -3300
A113: 2021-04-21 | B113: 0 | C113: 0 | F113: 0 | G113: 0 | H113: 0 | J113: =SUM(B$3:B113) -> 0 | T113: =SUMIF(ブログ経費!A:A,"<="&A113,ブログ経費!B:B) -> 3300 | U113: -3300
A114: 2021-04-22 | B114: 0 | C114: 0 | F114: 0 | G114: 0 | H114: 0 | J114: =SUM(B$3:B114) -> 0 | T114: =SUMIF(ブログ経費!A:A,"<="&A114,ブログ経費!B:B) -> 3300 | U114: -3300
A115: 2021-04-23 | B115: 0 | C115: 0 | F115: 0 | G115: 0 | H115: 0 | J115: =SUM(B$3:B115) -> 0 | T115: =SUMIF(ブログ経費!A:A,"<="&A115,ブログ経費!B:B) -> 3300 | U115: -3300
A116: 2021-04-24 | B116: 0 | C116: 0 | F116: 0 | G116: 0 | H116: 0 | J116: =SUM(B$3:B116) -> 0 | T116: =SUMIF(ブログ経費!A:A,"<="&A116,ブログ経費!B:B) -> 3300 | U116: -3300
A117: 2021-04-25 | B117: 0 | C117: 0 | F117: 0 | G117: 0 | H117: 0 | J117: =SUM(B$3:B117) -> 0 | T117: =SUMIF(ブログ経費!A:A,"<="&A117,ブログ経費!B:B) -> 3300 | U117: -3300
A118: 2021-04-26 | B118: 0 | C118: 0 | F118: 0 | G118: 0 | H118: 0 | J118: =SUM(B$3:B118) -> 0 | T118: =SUMIF(ブログ経費!A:A,"<="&A118,ブログ経費!B:B) -> 3300 | U118: -3300
A119: 2021-04-27 | B119: 0 | C119: 0 | F119: 0 | G119: 0 | H119: 0 | J119: =SUM(B$3:B119) -> 0 | T119: =SUMIF(ブログ経費!A:A,"<="&A119,ブログ経費!B:B) -> 3300 | U119: -3300
A120: 2021-04-28 | B120: 0 | C120: 0 | F120: 0 | G120: 0 | H120: 0 | J120: =SUM(B$3:B120) -> 0 | T120: =SUMIF(ブログ経費!A:A,"<="&A120,ブログ経費!B:B) -> 3300 | U120: -3300
A121: 2021-04-29 | B121: 0 | C121: 0 | F121: 0 | G121: 0 | H121: 0 | J121: =SUM(B$3:B121) -> 0 | T121: =SUMIF(ブログ経費!A:A,"<="&A121,ブログ経費!B:B) -> 3300 | U121: -3300
A122: 2021-04-30 | B122: 0 | C122: 0 | F122: 0 | G122: 0 | H122: 0 | J122: =SUM(B$3:B122) -> 0 | T122: =SUMIF(ブログ経費!A:A,"<="&A122,ブログ経費!B:B) -> 3300 | U122: -3300
A123: 2021-05-01 | B123: 0 | C123: 0 | F123: 0 | G123: 0 | H123: 0 | J123: =SUM(B$3:B123) -> 0 | T123: =SUMIF(ブログ経費!A:A,"<="&A123,ブログ経費!B:B) -> 3300 | U123: -3300
A124: 2021-05-02 | B124: 0 | C124: 0 | F124: 0 | G124: 0 | H124: 0 | J124: =SUM(B$3:B124) -> 0 | T124: =SUMIF(ブログ経費!A:A,"<="&A124,ブログ経費!B:B) -> 3300 | U124: -3300
A125: 2021-05-03 | B125: 0 | C125: 0 | F125: 0 | G125: 0 | H125: 0 | J125: =SUM(B$3:B125) -> 0 | T125: =SUMIF(ブログ経費!A:A,"<="&A125,ブログ経費!B:B) -> 3300 | U125: -3300
A126: 2021-05-04 | B126: 0 | C126: 0 | F126: 0 | G126: 0 | H126: 0 | J126: =SUM(B$3:B126) -> 0 | T126: =SUMIF(ブログ経費!A:A,"<="&A126,ブログ経費!B:B) -> 3300 | U126: -3300
A127: 2021-05-05 | B127: 0 | C127: 0 | F127: =SUM(B98:B127) -> 0 | G127: =SUM(B68:B97) -> 0 | H127: =F127-G127 -> 0 | I127: =H127/G127 ->  | J127: =SUM(B$3:B127) -> 0 | T127: =SUMIF(ブログ経費!A:A,"<="&A127,ブログ経費!B:B) -> 3300 | U127: -3300
A128: 2021-05-06 | B128: 0 | C128: 0 | F128: 0 | G128: 0 | H128: 0 | J128: =SUM(B$3:B128) -> 0 | T128: =SUMIF(ブログ経費!A:A,"<="&A128,ブログ経費!B:B) -> 3300 | U128: -3300
A129: 2021-05-07 | B129: 0 | C129: 0 | F129: 0 | G129: 0 | H129: 0 | J129: =SUM(B$3:B129) -> 0 | T129: =SUMIF(ブログ経費!A:A,"<="&A129,ブログ経費!B:B) -> 3300 | U129: -3300
A130: 2021-05-08 | B130: 0 | C130: 0 | F130: 0 | G130: 0 | H130: 0 | J130: =SUM(B$3:B130) -> 0 | T130: =SUMIF(ブログ経費!A:A,"<="&A130,ブログ経費!B:B) -> 5335 | U130: -5335
A131: 2021-05-09 | B131: 0 | C131: 0 | F131: 0 | G131: 0 | H131: 0 | J131: =SUM(B$3:B131) -> 0 | T131: =SUMIF(ブログ経費!A:A,"<="&A131,ブログ経費!B:B) -> 5335 | U131: -5335
A132: 2021-05-10 | B132: 0 | C132: 0 | F132: 0 | G132: 0 | H132: 0 | J132: =SUM(B$3:B132) -> 0 | T132: =SUMIF(ブログ経費!A:A,"<="&A132,ブログ経費!B:B) -> 5335 | U132: =J132-T132 -> -5335
A133: 2021-05-11 | B133: 0 | C133: =B133-B132 -> 0 | F133: 0 | G133: 0 | H133: 0 | J133: =SUM(B$3:B133) -> 0 | T133: =SUMIF(ブログ経費!A:A,"<="&A133,ブログ経費!B:B) -> 5335 | U133: -5335
A134: 2021-05-12 | B134: 0 | C134: 0 | F134: 0 | G134: 0 | H134: 0 | J134: =SUM(B$3:B134) -> 0 | T134: =SUMIF(ブログ経費!A:A,"<="&A134,ブログ経費!B:B) -> 5335 | U134: -5335
A135: 2021-05-13 | B135: 0 | C135: 0 | F135: 0 | G135: 0 | H135: 0 | J135: =SUM(B$3:B135) -> 0 | T135: =SUMIF(ブログ経費!A:A,"<="&A135,ブログ経費!B:B) -> 5335 | U135: -5335
A136: 2021-05-14 | B136: 0 | C136: 0 | F136: 0 | G136: 0 | H136: 0 | J136: =SUM(B$3:B136) -> 0 | T136: =SUMIF(ブログ経費!A:A,"<="&A136,ブログ経費!B:B) -> 5335 | U136: -5335
A137: 2021-05-15 | B137: 0 | C137: 0 | F137: 0 | G137: 0 | H137: 0 | J137: =SUM(B$3:B137) -> 0 | T137: =SUMIF(ブログ経費!A:A,"<="&A137,ブログ経費!B:B) -> 5335 | U137: -5335
A138: 2021-05-16 | B138: 0 | C138: 0 | F138: 0 | G138: 0 | H138: 0 | J138: =SUM(B$3:B138) -> 0 | T138: =SUMIF(ブログ経費!A:A,"<="&A138,ブログ経費!B:B) -> 5335 | U138: -5335
A139: 2021-05-17 | B139: 0 | C139: 0 | F139: 0 | G139: 0 | H139: 0 | J139: =SUM(B$3:B139) -> 0 | T139: =SUMIF(ブログ経費!A:A,"<="&A139,ブログ経費!B:B) -> 5335 | U139: -5335
A140: 2021-05-18 | B140: 0 | C140: 0 | F140: 0 | G140: 0 | H140: 0 | J140: =SUM(B$3:B140) -> 0 | T140: =SUMIF(ブログ経費!A:A,"<="&A140,ブログ経費!B:B) -> 5335 | U140: -5335
A141: 2021-05-19 | B141: 0 | C141: 0 | F141: 0 | G141: 0 | H141: 0 | J141: =SUM(B$3:B141) -> 0 | T141: =SUMIF(ブログ経費!A:A,"<="&A141,ブログ経費!B:B) -> 5335 | U141: -5335
A142: 2021-05-20 | B142: 0 | C142: 0 | F142: 0 | G142: 0 | H142: 0 | J142: =SUM(B$3:B142) -> 0 | T142: =SUMIF(ブログ経費!A:A,"<="&A142,ブログ経費!B:B) -> 5335 | U142: -5335
A143: 2021-05-21 | B143: 0 | C143: 0 | F143: 0 | G143: 0 | H143: 0 | J143: =SUM(B$3:B143) -> 0 | T143: =SUMIF(ブログ経費!A:A,"<="&A143,ブログ経費!B:B) -> 5335 | U143: -5335
A144: 2021-05-22 | B144: 0 | C144: 0 | F144: 0 | G144: 0 | H144: 0 | J144: =SUM(B$3:B144) -> 0 | T144: =SUMIF(ブログ経費!A:A,"<="&A144,ブログ経費!B:B) -> 5335 | U144: -5335
A145: 2021-05-23 | B145: 0 | C145: 0 | F145: 0 | G145: 0 | H145: 0 | J145: =SUM(B$3:B145) -> 0 | T145: =SUMIF(ブログ経費!A:A,"<="&A145,ブログ経費!B:B) -> 5335 | U145: -5335
A146: 2021-05-24 | B146: 0 | C146: 0 | F146: 0 | G146: 0 | H146: 0 | J146: =SUM(B$3:B146) -> 0 | T146: =SUMIF(ブログ経費!A:A,"<="&A146,ブログ経費!B:B) -> 5335 | U146: -5335
A147: 2021-05-25 | B147: 0 | C147: 0 | F147: 0 | G147: 0 | H147: 0 | J147: =SUM(B$3:B147) -> 0 | T147: =SUMIF(ブログ経費!A:A,"<="&A147,ブログ経費!B:B) -> 5335 | U147: -5335
A148: 2021-05-26 | B148: 0 | C148: 0 | F148: 0 | G148: 0 | H148: 0 | J148: =SUM(B$3:B148) -> 0 | T148: =SUMIF(ブログ経費!A:A,"<="&A148,ブログ経費!B:B) -> 5335 | U148: -5335
A149: 2021-05-27 | B149: 0 | C149: 0 | F149: 0 | G149: 0 | H149: 0 | J149: =SUM(B$3:B149) -> 0 | T149: =SUMIF(ブログ経費!A:A,"<="&A149,ブログ経費!B:B) -> 5335 | U149: -5335
A150: 2021-05-28 | B150: 0 | C150: 0 | F150: 0 | G150: 0 | H150: 0 | J150: =SUM(B$3:B150) -> 0 | T150: =SUMIF(ブログ経費!A:A,"<="&A150,ブログ経費!B:B) -> 5335 | U150: -5335
A151: 2021-05-29 | B151: 0 | C151: 0 | F151: 0 | G151: 0 | H151: 0 | J151: =SUM(B$3:B151) -> 0 | T151: =SUMIF(ブログ経費!A:A,"<="&A151,ブログ経費!B:B) -> 5335 | U151: -5335
A152: 2021-05-30 | B152: 0 | C152: 0 | F152: 0 | G152: 0 | H152: 0 | J152: =SUM(B$3:B152) -> 0 | T152: =SUMIF(ブログ経費!A:A,"<="&A152,ブログ経費!B:B) -> 5335 | U152: -5335
A153: 2021-05-31 | B153: 0 | C153: 0 | F153: 0 | G153: 0 | H153: 0 | J153: =SUM(B$3:B153) -> 0 | T153: =SUMIF(ブログ経費!A:A,"<="&A153,ブログ経費!B:B) -> 5335 | U153: -5335
A154: 2021-06-01 | B154: 0 | C154: 0 | F154: 0 | G154: 0 | H154: 0 | J154: =SUM(B$3:B154) -> 0 | T154: =SUMIF(ブログ経費!A:A,"<="&A154,ブログ経費!B:B) -> 5335 | U154: -5335
A155: 2021-06-02 | B155: 0 | C155: 0 | F155: 0 | G155: 0 | H155: 0 | J155: =SUM(B$3:B155) -> 0 | T155: =SUMIF(ブログ経費!A:A,"<="&A155,ブログ経費!B:B) -> 5335 | U155: -5335
A156: 2021-06-03 | B156: 0 | C156: 0 | F156: 0 | G156: 0 | H156: 0 | J156: =SUM(B$3:B156) -> 0 | T156: =SUMIF(ブログ経費!A:A,"<="&A156,ブログ経費!B:B) -> 5335 | U156: -5335
A157: 2021-06-04 | B157: 0 | C157: 0 | F157: 0 | G157: 0 | H157: 0 | J157: =SUM(B$3:B157) -> 0 | T157: =SUMIF(ブログ経費!A:A,"<="&A157,ブログ経費!B:B) -> 5335 | U157: -5335
A158: 2021-06-05 | B158: 0 | C158: 0 | F158: 0 | G158: 0 | H158: 0 | J158: =SUM(B$3:B158) -> 0 | T158: =SUMIF(ブログ経費!A:A,"<="&A158,ブログ経費!B:B) -> 5335 | U158: -5335
A159: 2021-06-06 | B159: 0 | C159: 0 | F159: 0 | G159: 0 | H159: 0 | J159: =SUM(B$3:B159) -> 0 | T159: =SUMIF(ブログ経費!A:A,"<="&A159,ブログ経費!B:B) -> 5335 | U159: -5335
A160: 2021-06-07 | B160: 0 | C160: 0 | F160: 0 | G160: 0 | H160: 0 | J160: =SUM(B$3:B160) -> 0 | T160: =SUMIF(ブログ経費!A:A,"<="&A160,ブログ経費!B:B) -> 5335 | U160: -5335
A161: 2021-06-08 | B161: 0 | C161: 0 | F161: 0 | G161: 0 | H161: 0 | J161: =SUM(B$3:B161) -> 0 | T161: =SUMIF(ブログ経費!A:A,"<="&A161,ブログ経費!B:B) -> 5335 | U161: -5335
A162: 2021-06-09 | B162: 0 | C162: 0 | F162: 0 | G162: 0 | H162: 0 | J162: =SUM(B$3:B162) -> 0 | T162: =SUMIF(ブログ経費!A:A,"<="&A162,ブログ経費!B:B) -> 5335 | U162: -5335
A163: 2021-06-10 | B163: 0 | C163: 0 | F163: 0 | G163: 0 | H163: 0 | J163: =SUM(B$3:B163) -> 0 | T163: =SUMIF(ブログ経費!A:A,"<="&A163,ブログ経費!B:B) -> 5335 | U163: -5335
A164: 2021-06-11 | B164: 0 | C164: 0 | F164: 0 | G164: 0 | H164: 0 | J164: =SUM(B$3:B164) -> 0 | T164: =SUMIF(ブログ経費!A:A,"<="&A164,ブログ経費!B:B) -> 5335 | U164: -5335
A165: 2021-06-12 | B165: 0 | C165: 0 | F165: 0 | G165: 0 | H165: 0 | J165: =SUM(B$3:B165) -> 0 | T165: =SUMIF(ブログ経費!A:A,"<="&A165,ブログ経費!B:B) -> 5335 | U165: -5335
A166: 2021-06-13 | B166: 0 | C166: 0 | F166: 0 | G166: 0 | H166: 0 | J166: =SUM(B$3:B166) -> 0 | T166: =SUMIF(ブログ経費!A:A,"<="&A166,ブログ経費!B:B) -> 5335 | U166: -5335
A167: 2021-06-14 | B167: 0 | C167: 0 | F167: 0 | G167: 0 | H167: 0 | J167: =SUM(B$3:B167) -> 0 | T167: =SUMIF(ブログ経費!A:A,"<="&A167,ブログ経費!B:B) -> 5335 | U167: -5335
A168: 2021-06-15 | B168: 0 | C168: 0 | F168: 0 | G168: 0 | H168: 0 | J168: =SUM(B$3:B168) -> 0 | T168: =SUMIF(ブログ経費!A:A,"<="&A168,ブログ経費!B:B) -> 5335 | U168: -5335
A169: 2021-06-16 | B169: 0 | C169: 0 | F169: 0 | G169: 0 | H169: 0 | J169: =SUM(B$3:B169) -> 0 | T169: =SUMIF(ブログ経費!A:A,"<="&A169,ブログ経費!B:B) -> 5335 | U169: -5335
A170: 2021-06-17 | B170: 0 | C170: 0 | F170: 0 | G170: 0 | H170: 0 | J170: =SUM(B$3:B170) -> 0 | T170: =SUMIF(ブログ経費!A:A,"<="&A170,ブログ経費!B:B) -> 5335 | U170: -5335
A171: 2021-06-18 | B171: 0 | C171: 0 | F171: 0 | G171: 0 | H171: 0 | J171: =SUM(B$3:B171) -> 0 | T171: =SUMIF(ブログ経費!A:A,"<="&A171,ブログ経費!B:B) -> 5335 | U171: -5335
A172: 2021-06-19 | B172: 0 | C172: 0 | F172: 0 | G172: 0 | H172: 0 | J172: =SUM(B$3:B172) -> 0 | T172: =SUMIF(ブログ経費!A:A,"<="&A172,ブログ経費!B:B) -> 5335 | U172: -5335
A173: 2021-06-20 | B173: 0 | C173: 0 | F173: 0 | G173: 0 | H173: 0 | J173: =SUM(B$3:B173) -> 0 | T173: =SUMIF(ブログ経費!A:A,"<="&A173,ブログ経費!B:B) -> 5335 | U173: -5335
A174: 2021-06-21 | B174: 0 | C174: 0 | F174: 0 | G174: 0 | H174: 0 | J174: =SUM(B$3:B174) -> 0 | T174: =SUMIF(ブログ経費!A:A,"<="&A174,ブログ経費!B:B) -> 5335 | U174: -5335
A175: 2021-06-22 | B175: 0 | C175: 0 | F175: 0 | G175: 0 | H175: 0 | J175: =SUM(B$3:B175) -> 0 | T175: =SUMIF(ブログ経費!A:A,"<="&A175,ブログ経費!B:B) -> 5335 | U175: -5335
A176: 2021-06-23 | B176: 0 | C176: 0 | F176: 0 | G176: 0 | H176: 0 | J176: =SUM(B$3:B176) -> 0 | T176: =SUMIF(ブログ経費!A:A,"<="&A176,ブログ経費!B:B) -> 5335 | U176: -5335
A177: 2021-06-24 | B177: 0 | C177: 0 | F177: 0 | G177: 0 | H177: 0 | J177: =SUM(B$3:B177) -> 0 | T177: =SUMIF(ブログ経費!A:A,"<="&A177,ブログ経費!B:B) -> 5335 | U177: -5335
A178: 2021-06-25 | B178: 0 | C178: 0 | F178: 0 | G178: 0 | H178: 0 | J178: =SUM(B$3:B178) -> 0 | T178: =SUMIF(ブログ経費!A:A,"<="&A178,ブログ経費!B:B) -> 5335 | U178: -5335
A179: 2021-06-26 | B179: 0 | C179: 0 | F179: 0 | G179: 0 | H179: 0 | J179: =SUM(B$3:B179) -> 0 | T179: =SUMIF(ブログ経費!A:A,"<="&A179,ブログ経費!B:B) -> 5335 | U179: -5335
A180: 2021-06-27 | B180: 0 | C180: 0 | F180: 0 | G180: 0 | H180: 0 | J180: =SUM(B$3:B180) -> 0 | T180: =SUMIF(ブログ経費!A:A,"<="&A180,ブログ経費!B:B) -> 5335 | U180: -5335
A181: 2021-06-28 | B181: 0 | C181: 0 | F181: 0 | G181: 0 | H181: 0 | J181: =SUM(B$3:B181) -> 0 | T181: =SUMIF(ブログ経費!A:A,"<="&A181,ブログ経費!B:B) -> 5335 | U181: -5335
A182: 2021-06-29 | B182: 0 | C182: 0 | F182: 0 | G182: 0 | H182: 0 | J182: =SUM(B$3:B182) -> 0 | T182: =SUMIF(ブログ経費!A:A,"<="&A182,ブログ経費!B:B) -> 5335 | U182: -5335
A183: 2021-06-30 | B183: 0 | C183: 0 | F183: 0 | G183: 0 | H183: 0 | J183: =SUM(B$3:B183) -> 0 | T183: =SUMIF(ブログ経費!A:A,"<="&A183,ブログ経費!B:B) -> 5335 | U183: -5335
A184: 2021-07-01 | B184: 0 | C184: 0 | F184: 0 | G184: 0 | H184: 0 | J184: =SUM(B$3:B184) -> 0 | T184: =SUMIF(ブログ経費!A:A,"<="&A184,ブログ経費!B:B) -> 5335 | U184: -5335
A185: 2021-07-02 | B185: 0 | C185: 0 | F185: 0 | G185: 0 | H185: 0 | J185: =SUM(B$3:B185) -> 0 | T185: =SUMIF(ブログ経費!A:A,"<="&A185,ブログ経費!B:B) -> 5335 | U185: -5335
A186: 2021-07-03 | B186: 0 | C186: 0 | F186: 0 | G186: 0 | H186: 0 | J186: =SUM(B$3:B186) -> 0 | T186: =SUMIF(ブログ経費!A:A,"<="&A186,ブログ経費!B:B) -> 5335 | U186: -5335
A187: 2021-07-04 | B187: 0 | C187: 0 | F187: 0 | G187: 0 | H187: 0 | J187: =SUM(B$3:B187) -> 0 | T187: =SUMIF(ブログ経費!A:A,"<="&A187,ブログ経費!B:B) -> 5335 | U187: -5335
A188: 2021-07-05 | B188: 0 | C188: 0 | F188: 0 | G188: 0 | H188: 0 | J188: =SUM(B$3:B188) -> 0 | T188: =SUMIF(ブログ経費!A:A,"<="&A188,ブログ経費!B:B) -> 5335 | U188: -5335
A189: 2021-07-06 | B189: 0 | C189: 0 | F189: 0 | G189: 0 | H189: 0 | J189: =SUM(B$3:B189) -> 0 | T189: =SUMIF(ブログ経費!A:A,"<="&A189,ブログ経費!B:B) -> 5335 | U189: -5335
A190: 2021-07-07 | B190: 0 | C190: 0 | F190: 0 | G190: 0 | H190: 0 | J190: =SUM(B$3:B190) -> 0 | T190: =SUMIF(ブログ経費!A:A,"<="&A190,ブログ経費!B:B) -> 5335 | U190: -5335
A191: 2021-07-08 | B191: 0 | C191: 0 | F191: =SUM(B162:B191) -> 0 | G191: =SUM(B132:B161) -> 0 | H191: =F191-G191 -> 0 | I191: =H191/G191 ->  | J191: =SUM(B$3:B191) -> 0 | T191: =SUMIF(ブログ経費!A:A,"<="&A191,ブログ経費!B:B) -> 5335 | U191: -5335
A192: 2021-07-09 | B192: 0 | C192: 0 | F192: 0 | G192: 0 | H192: 0 | J192: =SUM(B$3:B192) -> 0 | T192: =SUMIF(ブログ経費!A:A,"<="&A192,ブログ経費!B:B) -> 5335 | U192: -5335
A193: 2021-07-10 | B193: 0 | C193: 0 | F193: 0 | G193: 0 | H193: 0 | J193: =SUM(B$3:B193) -> 0 | T193: =SUMIF(ブログ経費!A:A,"<="&A193,ブログ経費!B:B) -> 5335 | U193: -5335
A194: 2021-07-11 | B194: 0 | C194: 0 | F194: 0 | G194: 0 | H194: 0 | J194: =SUM(B$3:B194) -> 0 | T194: =SUMIF(ブログ経費!A:A,"<="&A194,ブログ経費!B:B) -> 5335 | U194: -5335
A195: 2021-07-12 | B195: 0 | C195: 0 | F195: 0 | G195: 0 | H195: 0 | J195: =SUM(B$3:B195) -> 0 | T195: =SUMIF(ブログ経費!A:A,"<="&A195,ブログ経費!B:B) -> 5335 | U195: -5335
A196: 2021-07-13 | B196: 0 | C196: 0 | F196: 0 | G196: 0 | H196: 0 | J196: =SUM(B$3:B196) -> 0 | T196: =SUMIF(ブログ経費!A:A,"<="&A196,ブログ経費!B:B) -> 5335 | U196: =J196-T196 -> -5335
A197: 2021-07-14 | B197: 0 | C197: =B197-B196 -> 0 | F197: 0 | G197: 0 | H197: 0 | J197: =SUM(B$3:B197) -> 0 | T197: =SUMIF(ブログ経費!A:A,"<="&A197,ブログ経費!B:B) -> 5335 | U197: -5335
A198: 2021-07-15 | B198: 0 | C198: 0 | F198: 0 | G198: 0 | H198: 0 | J198: =SUM(B$3:B198) -> 0 | T198: =SUMIF(ブログ経費!A:A,"<="&A198,ブログ経費!B:B) -> 5335 | U198: -5335
A199: 2021-07-16 | B199: 0 | C199: 0 | F199: 0 | G199: 0 | H199: 0 | J199: =SUM(B$3:B199) -> 0 | T199: =SUMIF(ブログ経費!A:A,"<="&A199,ブログ経費!B:B) -> 5335 | U199: -5335
A200: 2021-07-17 | B200: 0 | C200: 0 | F200: 0 | G200: 0 | H200: 0 | J200: =SUM(B$3:B200) -> 0 | T200: =SUMIF(ブログ経費!A:A,"<="&A200,ブログ経費!B:B) -> 5335 | U200: -5335
... 1194 more rows

Sheet ブログ経費
A1: 日付 | B1: 費用 | C1: 費目 | F1: 0
A2: 2020-10-01 | B2: 3300 | C2: サーバー
A3: 2021-05-08 | B3: 2035 | C3: ドメイン
A4: 2021-11-01 | B4: 6600 | C4: サーバー
A5: 2022-04-28 | B5: 4290 | C5: サーバー
A6: 2022-05-01 | B6: 3344 | C6: ドメイン
A7: 2022-10-30 | B7: 15840 | C7: サーバー | D7: 36カ月
A8: 2023-05-01 | B8: 3962 | C8: ドメイン
